fUST/lending_fUST_20240721
["ID","MTS","AMOUNT","RATE_DAILY","PERIOD"]
[332825531,1721555456991,-4728.422832,0.00013699,2]
[332825532,1721555457000,-332.029238,0.00013699,2]
[332825533,1721555457009,-332.029238,0.00013699,2]
[332825534,1721555457022,-786.617666,0.00013699,2]
[332825535,1721555457032,-786.617666,0.00013699,2]
[332825536,1721555457042,-5229.849263,0.00013699,2]
[332825537,1721555457053,-2303.425605,0.00013699,2]
[332825538,1721555457065,-5229.849263,0.00013699,2]
[332825539,1721555457076,-2303.425605,0.00013699,2]
[332825540,1721555457086,-151.0,0.00013699,2]
[332825541,1721555457096,-5232.199134,0.00013699,2]
[332825542,1721555457108,-5232.199134,0.00013699,2]
[332825543,1721555457118,-308.423306,0.00013699,2]
[332825544,1721555457128,-308.423306,0.00013699,2]
[332825545,1721555457138,-728.937949,0.00013699,2]
[332825546,1721555457149,-728.937949,0.00013699,2]
[332825547,1721555457161,-151.0,0.00013699,2]
[332825548,1721555457171,-151.0,0.00013699,2]
[332825549,1721555457182,-5304.19710114,0.00013726,2]
[332825550,1721555457191,-624.55754569,0.00013752,2]
[332825551,1721555457200,-541.2103853,0.00013832,2]
[332825552,1721555457210,-174.495626,0.00013866,2]
[332825553,1721555457219,-418.789504,0.00013866,2]
[332825554,1721555457229,-151.944204,0.00013866,2]
[332825555,1721555457239,-158.357509,0.00013866,2]
[332825556,1721555457248,-193.245889,0.00013866,2]
[332825557,1721555457257,-165.451103,0.00013866,2]
[332825558,1721555457267,-156.381405,0.00013866,2]
[332825559,1721555457276,-267.425649,0.00013872,2]
[332825560,1721555457285,-267.425649,0.00013872,2]
[332825561,1721555457295,-151.0,0.00013872,2]
[332825562,1721555457305,-151.0,0.00013872,2]
[332825563,1721555457314,-151.0,0.00013872,2]
[332825564,1721555457324,-327.358996,0.00013872,2]
[332825565,1721555457334,-327.358996,0.00013872,2]
[332825566,1721555457344,-1948.248243,0.00013872,2]
[332825567,1721555457354,-1948.248243,0.00013872,2]
[332825568,1721555457363,-177.083996,0.00013872,2]
[332825569,1721555457372,-4043.984059,0.00013872,2]
[332825570,1721555457382,-151.0,0.00013872,2]
[332825571,1721555457391,-177.083996,0.00013872,2]
[332825572,1721555457401,-4043.984059,0.00013872,2]
[332825573,1721555457411,-4728.422832,0.00013872,2]
[332825574,1721555457422,-4728.422832,0.00013872,2]
[332825575,1721555457431,-332.029238,0.00013872,2]
[332825576,1721555457440,-332.029238,0.00013872,2]
[332825577,1721555457450,-786.617666,0.00013872,2]
[332825578,1721555457459,-786.617666,0.00013872,2]
[332825579,1721555457468,-5229.849263,0.00013872,2]
[332825580,1721555457478,-2303.425605,0.00013872,2]
[332825581,1721555457487,-5229.849263,0.00013872,2]
[332825582,1721555457497,-2303.425605,0.00013872,2]
[332825583,1721555457506,-151.0,0.00013872,2]
[332825584,1721555457516,-308.423306,0.00013872,2]
[332825585,1721555457526,-308.423306,0.00013872,2]
[332825586,1721555457536,-728.937949,0.00013872,2]
[332825587,1721555457545,-728.937949,0.00013872,2]
[332825588,1721555457554,-151.0,0.00013872,2]
[332825589,1721555457563,-150.0,0.0001389,2]
[332825590,1721555457572,-505.0,0.0001389,2]
[332825591,1721555457582,-1408.0,0.0001389,2]
[332825592,1721555457591,-150.787,0.0001389,2]
[332825593,1721555457601,-212.095,0.0001389,2]
[332825594,1721555457610,-1780.89648986,0.0001395,2]
[332825595,1721555457619,-151.0,0.00013961,2]
[332825596,1721555457629,-151.0,0.00013961,2]
[332825597,1721555457639,-267.425649,0.00013961,2]
[332825598,1721555457648,-267.425649,0.00013961,2]
[332825599,1721555457657,-151.0,0.00013961,2]
[332825600,1721555457666,-158.715353,0.00013961,2]
[332825601,1721555457675,-158.715353,0.00013961,2]
[332825602,1721555457684,-349.684423,0.00013961,2]
[332825603,1721555457693,-349.684423,0.00013961,2]
[332825604,1721555457703,-151.0,0.00013961,2]
[332825605,1721555457712,-151.0,0.00013961,2]
[332825606,1721555457721,-151.0,0.00013961,2]
[332825607,1721555457730,-151.0,0.00013961,2]
[332825608,1721555457739,-151.0,0.00013961,2]
[332825609,1721555457748,-327.358996,0.00013961,2]
[332825610,1721555457758,-327.358996,0.00013961,2]
[332825611,1721555457768,-151.0,0.00013961,2]
[332825612,1721555457777,-151.0,0.00013961,2]
[332825613,1721555457786,-151.0,0.00013961,2]
[332825614,1721555457795,-151.0,0.00013961,2]
[332825615,1721555457805,-151.0,0.00013961,2]
[332825616,1721555457814,-1314.43913,0.00013961,2]
[332825617,1721555457830,-4816.730896,0.00013961,2]
[332825618,1721555457845,-1314.43913,0.00013961,2]
[332825619,1721555457861,-4816.730896,0.00013961,2]
[332825620,1721555457872,-282.294659,0.00013961,2]
[332825621,1721555457886,-282.294659,0.00013961,2]
[332825622,1721555457900,-2058.513491,0.00013961,2]
[332825623,1721555457914,-2058.513491,0.00013961,2]
[332825624,1721555457928,-1718.639336,0.00013961,2]
[332825625,1721555457942,-1718.639336,0.00013961,2]
[332825626,1721555457958,-151.0,0.00013961,2]
[332825627,1721555457970,-247.364954,0.00013961,2]
[332825628,1721555457983,-247.364954,0.00013961,2]
[332825629,1721555457996,-687.267617,0.00013961,2]
[332825630,1721555458010,-687.267617,0.00013961,2]
[332825631,1721555458023,-500.0,0.00013961,2]
[332825632,1721555458038,-500.0,0.00013961,2]
[332825633,1721555458048,-500.0,0.00013961,2]
[332825634,1721555458061,-322.97824955,0.00013961,2]
[332825635,1721555458075,-5232.199134,0.00013961,2]
[332825636,1721555458087,-5232.199129,0.00013961,2]
[332825637,1721555458102,-151.0,0.00013962,2]
[332825638,1721555458114,-252.05,0.00013962,2]
[332825639,1721555458128,-151.0,0.00013962,2]
[332825640,1721555458143,-151.0,0.00013962,2]
[332825641,1721555458155,-151.0,0.00013962,2]
[332825642,1721555458165,-267.425649,0.00013962,2]
[332825643,1721555458177,-267.425649,0.00013962,2]
[332825644,1721555458191,-151.0,0.00013962,2]
[332825645,1721555458204,-158.715353,0.00013962,2]
[332825646,1721555458216,-158.715353,0.00013962,2]
[332825647,1721555458229,-158.715353,0.00013962,2]
[332825648,1721555458241,-158.715353,0.00013962,2]
[332825649,1721555458254,-349.684423,0.00013962,2]
[332825650,1721555458266,-349.684423,0.00013962,2]
[332825651,1721555458276,-349.684423,0.00013962,2]
[332825652,1721555458287,-349.684423,0.00013962,2]
[332825653,1721555458299,-151.0,0.00013962,2]
[332825654,1721555458311,-696.599873,0.00013962,2]
[332825655,1721555458322,-696.599873,0.00013962,2]
[332825656,1721555458334,-151.0,0.00013962,2]
[332825657,1721555458346,-151.0,0.00013962,2]
[332825658,1721555458357,-151.0,0.00013962,2]
[332825659,1721555458368,-151.0,0.00013962,2]
[332825660,1721555458380,-151.0,0.00013962,2]
[332825661,1721555458392,-1314.43913,0.00013962,2]
[332825662,1721555458404,-4816.730896,0.00013962,2]
[332825663,1721555458416,-1314.43913,0.00013962,2]
[332825664,1721555458428,-4816.730896,0.00013962,2]
[332825665,1721555458439,-282.294659,0.00013962,2]
[332825666,1721555458451,-282.294659,0.00013962,2]
[332825667,1721555458464,-2058.513491,0.00013962,2]
[332825668,1721555458476,-2058.513491,0.00013962,2]
[332825669,1721555458488,-1948.248243,0.00013962,2]
[332825670,1721555458500,-1948.248235,0.00013962,2]
[332825671,1721555458511,-177.083996,0.00013962,2]
[332825672,1721555458523,-4043.984059,0.00013962,2]
[332825673,1721555458535,-151.0,0.00013962,2]
[332825674,1721555458547,-177.084002,0.00013962,2]
[332825675,1721555458560,-4043.984052,0.00013962,2]
[332825676,1721555458571,-4728.422832,0.00013962,2]
[332825677,1721555458587,-4728.422839,0.00013962,2]
[332825678,1721555458601,-332.029238,0.00013962,2]
[332825679,1721555458613,-332.029247,0.00013962,2]
[332825680,1721555458624,-786.617666,0.00013962,2]
[332825681,1721555458636,-786.617659,0.00013962,2]
[332825682,1721555458648,-5229.849263,0.00013962,2]
[332825683,1721555458660,-2303.425605,0.00013962,2]
[332825684,1721555458671,-5229.849265,0.00013962,2]
[332825685,1721555458683,-2303.425609,0.00013962,2]
[332825686,1721555458694,-278.496295,0.00013962,2]
[332825687,1721555458706,-308.423306,0.00013962,2]
[332825688,1721555458717,-308.423302,0.00013962,2]
[332825689,1721555458729,-728.937949,0.00013962,2]
[332825690,1721555458740,-728.937943,0.00013962,2]
[332825691,1721555458752,-151.0,0.00013962,2]
[332825692,1721555458764,-367.35615468,0.00013965,2]
[332825693,1721555458776,-151.0,0.00013971,2]
[332825694,1721555458788,-151.0,0.00013971,2]
[332825695,1721555458800,-151.0,0.00013971,2]
[332825696,1721555458812,-238.741733,0.00013971,2]
[332825697,1721555458824,-696.599873,0.00013971,2]
[332825698,1721555458836,-696.599873,0.00013971,2]
[332825699,1721555458850,-151.0,0.00013971,2]
[332825700,1721555458861,-151.0,0.00013971,2]
[332825701,1721555458873,-327.358996,0.00013971,2]
[332825702,1721555458885,-327.358996,0.00013971,2]
[332825703,1721555458896,-500.0,0.00013971,2]
[332825704,1721555458908,-500.0,0.00013971,2]
[332825705,1721555458920,-500.0,0.00013971,2]
[332825706,1721555458932,-500.0,0.00013971,2]
[332825707,1721555458943,-500.0,0.00013971,2]
[332825708,1721555458955,-309.82,0.00013971,2]
[332825709,1721555458967,-1718.639336,0.00013971,2]
[332825710,1721555458978,-1718.639342,0.00013971,2]
[332825711,1721555458990,-151.0,0.00013971,2]
[332825712,1721555459002,-247.364954,0.00013971,2]
[332825713,1721555459014,-247.364955,0.00013971,2]
[332825714,1721555459028,-687.267617,0.00013971,2]
[332825715,1721555459039,-687.267618,0.00013971,2]
[332825716,1721555459051,-500.0,0.00013971,2]
[332825717,1721555459063,-500.0,0.00013971,2]
[332825718,1721555459074,-500.0,0.00013971,2]
[332825719,1721555459086,-524.75234271,0.00013971,2]
[332825720,1721555459099,-1453.14,0.00013972,2]
[332825721,1721555459114,-500.0,0.00013972,2]
[332825722,1721555459126,-500.0,0.00013972,2]
[332825723,1721555459138,-500.0,0.00013972,2]
[332825724,1721555459149,-500.0,0.00013972,2]
[332825725,1721555459161,-500.0,0.00013972,2]
[332825726,1721555459174,-151.0,0.00013972,2]
[332825727,1721555459187,-151.0,0.00013972,2]
[332825728,1721555459199,-151.0,0.00013972,2]
[332825729,1721555459211,-151.0,0.00013972,2]
[332825730,1721555459223,-151.0,0.00013972,2]
[332825731,1721555459235,-500.0,0.00013972,2]
[332825732,1721555459247,-500.0,0.00013972,2]
[332825733,1721555459260,-500.0,0.00013972,2]
[332825734,1721555459273,-252.05,0.00013972,2]
[332825735,1721555459284,-252.05,0.00013972,2]
[332825736,1721555459297,-252.05,0.00013972,2]
[332825737,1721555459309,-252.05,0.00013972,2]
[332825738,1721555459320,-252.05,0.00013972,2]
[332825739,1721555459333,-1466.7,0.00013972,2]
[332825740,1721555459345,-500.0,0.00013972,2]
[332825741,1721555459357,-500.0,0.00013972,2]
[332825742,1721555459369,-500.0,0.00013972,2]
[332825743,1721555459380,-500.0,0.00013972,2]
[332825744,1721555459391,-500.0,0.00013972,2]
[332825745,1721555459403,-500.0,0.00013972,2]
[332825746,1721555459415,-383.62262784,0.00013972,2]
[332825747,1721555459426,-151.0,0.00013972,2]
[332825748,1721555459438,-176.231775,0.00013972,2]
[332825749,1721555459449,-500.0,0.00013972,2]
[332825750,1721555459462,-500.0,0.00013972,2]
[332825751,1721555459474,-500.0,0.00013972,2]
[332825752,1721555459486,-809.83,0.00013972,2]
[332825753,1721555459497,-790.39,0.00013972,2]
[332825754,1721555459509,-500.0,0.00013972,2]
[332825755,1721555459521,-500.0,0.00013972,2]
[332825756,1721555459533,-500.0,0.00013972,2]
[332825757,1721555459545,-581.65,0.00013972,2]
[332825758,1721555459556,-547.55,0.00013972,2]
[332825759,1721555459569,-500.0,0.00013972,2]
[332825760,1721555459578,-150.80651626,0.00013972,2]
[332825761,1721555459587,-500.0,0.00013972,2]
[332825762,1721555459597,-500.0,0.00013972,2]
[332825763,1721555459606,-500.0,0.00013972,2]
[332825764,1721555459616,-500.0,0.00013972,2]
[332825765,1721555459625,-313.18478137,0.00013972,2]
[332825766,1721555459635,-500.0,0.00013972,2]
[332825767,1721555459646,-500.0,0.00013972,2]
[332825768,1721555459656,-500.0,0.00013972,2]
[332825769,1721555459666,-500.0,0.00013972,2]
[332825770,1721555459676,-467.85424281,0.00013972,2]
[332825771,1721555459687,-501.95092707,0.00013972,2]
[332825772,1721555459698,-500.0,0.00013972,2]
[332825773,1721555459711,-538.95614351,0.00013972,2]
[332825774,1721555459721,-500.0,0.00013972,2]
[332825775,1721555459732,-500.0,0.00013972,2]
[332825776,1721555459742,-151.0,0.00013972,2]
[332825777,1721555459754,-151.0,0.00013972,2]
[332825778,1721555459765,-500.0,0.00013972,2]
[332825779,1721555459776,-151.0,0.00013972,2]
[332825780,1721555460059,-151.0,0.00013972,2]
[332825781,1721555460090,-151.0,0.00013972,2]
[332825782,1721555460105,-151.0,0.00013972,2]
[332825783,1721555460115,-151.0,0.00013972,2]
[332825784,1721555460125,-151.0,0.00013972,2]
[332825785,1721555460134,-151.0,0.00013972,2]
[332825786,1721555460143,-151.0,0.00013972,2]
[332825787,1721555460153,-273.691927,0.00013972,2]
[332825788,1721555460162,-500.0,0.00013972,2]
[332825789,1721555460171,-500.0,0.00013972,2]
[332825790,1721555460181,-500.0,0.00013972,2]
[332825791,1721555460191,-500.0,0.00013972,2]
[332825792,1721555460201,-500.0,0.00013972,2]
[332825793,1721555460211,-500.0,0.00013972,2]
[332825794,1721555460221,-500.0,0.00013972,2]
[332825795,1721555460231,-500.0,0.00013972,2]
[332825796,1721555460241,-500.0,0.00013972,2]
[332825797,1721555460251,-500.0,0.00013972,2]
[332825798,1721555460260,-729.89,0.00013972,2]
[332825799,1721555460269,-500.0,0.00013972,2]
[332825800,1721555460280,-691.71,0.00013972,2]
[332825801,1721555460289,-500.0,0.00013972,2]
[332825802,1721555460299,-500.0,0.00013972,2]
[332825803,1721555460308,-500.0,0.00013972,2]
[332825804,1721555460317,-500.0,0.00013972,2]
[332825805,1721555460327,-500.0,0.00013972,2]
[332825806,1721555460337,-912.64,0.00013972,2]
[332825807,1721555460346,-500.0,0.00013972,2]
[332825808,1721555460355,-500.0,0.00013972,2]
[332825809,1721555460366,-500.0,0.00013972,2]
[332825810,1721555460375,-500.0,0.00013972,2]
[332825811,1721555460384,-2388.42,0.00013972,2]
[332825812,1721555460393,-267.425649,0.00013972,2]
[332825813,1721555460403,-267.425649,0.00013972,2]
[332825814,1721555460412,-267.425649,0.00013972,2]
[332825815,1721555460422,-267.425649,0.00013972,2]
[332825816,1721555460432,-507.25824957,0.00013972,2]
[332825817,1721555460442,-267.425649,0.00013972,2]
[332825818,1721555460451,-267.425649,0.00013972,2]
[332825819,1721555460462,-267.425649,0.00013972,2]
[332825820,1721555460471,-267.425649,0.00013972,2]
[332825821,1721555460481,-267.425649,0.00013972,2]
[332825822,1721555460491,-267.425649,0.00013972,2]
[332825823,1721555460500,-267.425649,0.00013972,2]
[332825824,1721555460512,-267.425651,0.00013972,2]
[332825825,1721555460522,-338.59133291,0.00013972,2]
[332825826,1721555460533,-500.0,0.00013972,2]
[332825827,1721555460542,-500.0,0.00013972,2]
[332825828,1721555460553,-500.0,0.00013972,2]
[332825829,1721555460565,-185.64476668,0.00013972,2]
[332825830,1721555460575,-500.0,0.00013972,2]
[332825831,1721555460585,-500.0,0.00013972,2]
[332825832,1721555460597,-151.0,0.00013972,2]
[332825833,1721555460608,-151.0,0.00013972,2]
[332825834,1721555460618,-151.0,0.00013972,2]
[332825835,1721555460630,-151.0,0.00013972,2]
[332825836,1721555460641,-157.212796,0.00013972,2]
[332825837,1721555460652,-156.07390488,0.00013972,2]
[332825838,1721555460661,-500.0,0.00013972,2]
[332825839,1721555460672,-500.0,0.00013972,2]
[332825840,1721555460682,-868.2,0.00013972,2]
[332825841,1721555460691,-500.0,0.00013972,2]
[332825842,1721555460701,-500.0,0.00013972,2]
[332825843,1721555460710,-500.0,0.00013972,2]
[332825844,1721555460720,-500.0,0.00013972,2]
[332825845,1721555460729,-500.0,0.00013972,2]
[332825846,1721555460740,-500.0,0.00013972,2]
[332825847,1721555460750,-500.0,0.00013972,2]
[332825848,1721555460760,-500.0,0.00013972,2]
[332825849,1721555460770,-613.36,0.00013972,2]
[332825850,1721555460780,-500.0,0.00013972,2]
[332825851,1721555460792,-500.0,0.00013972,2]
[332825852,1721555460804,-500.0,0.00013972,2]
[332825853,1721555460815,-500.0,0.00013972,2]
[332825854,1721555460825,-500.0,0.00013972,2]
[332825855,1721555460835,-609.08,0.00013972,2]
[332825856,1721555460846,-297.62054279,0.00013972,2]
[332825857,1721555460855,-500.0,0.00013972,2]
[332825858,1721555460870,-500.0,0.00013972,2]
[332825859,1721555460880,-500.0,0.00013972,2]
[332825860,1721555460892,-500.0,0.00013972,2]
[332825861,1721555460901,-500.0,0.00013972,2]
[332825862,1721555460911,-158.715353,0.00013972,2]
[332825863,1721555460921,-158.715353,0.00013972,2]
[332825864,1721555460930,-500.0,0.00013972,2]
[332825865,1721555460940,-158.715353,0.00013972,2]
[332825866,1721555460951,-158.715353,0.00013972,2]
[332825867,1721555460962,-158.715353,0.00013972,2]
[332825868,1721555460974,-158.715353,0.00013972,2]
[332825869,1721555460984,-158.715353,0.00013972,2]
[332825870,1721555460997,-500.0,0.00013972,2]
[332825871,1721555461007,-158.715353,0.00013972,2]
[332825872,1721555461021,-158.715353,0.00013972,2]
[332825873,1721555461037,-500.0,0.00013972,2]
[332825874,1721555461048,-158.715362,0.00013972,2]
[332825875,1721555461059,-500.0,0.00013972,2]
[332825876,1721555461072,-500.0,0.00013972,2]
[332825877,1721555461081,-500.0,0.00013972,2]
[332825878,1721555461091,-500.0,0.00013972,2]
[332825879,1721555461108,-349.684423,0.00013972,2]
[332825880,1721555461119,-349.684423,0.00013972,2]
[332825881,1721555461131,-349.684423,0.00013972,2]
[332825882,1721555461142,-349.684423,0.00013972,2]
[332825883,1721555461152,-349.684423,0.00013972,2]
[332825884,1721555461162,-349.684423,0.00013972,2]
[332825885,1721555461171,-349.684423,0.00013972,2]
[332825886,1721555461181,-349.684423,0.00013972,2]
[332825887,1721555461191,-349.684423,0.00013972,2]
[332825888,1721555461200,-349.68443,0.00013972,2]
[332825889,1721555461210,-500.0,0.00013972,2]
[332825890,1721555461220,-500.0,0.00013972,2]
[332825891,1721555461229,-512.95221994,0.00013972,2]
[332825892,1721555461239,-500.0,0.00013972,2]
[332825893,1721555461250,-500.0,0.00013972,2]
[332825894,1721555461259,-274.90088582,0.00013972,2]
[332825895,1721555461269,-500.0,0.00013972,2]
[332825896,1721555461278,-520.06146988,0.00013972,2]
[332825897,1721555461289,-500.0,0.00013972,2]
[332825898,1721555461298,-500.0,0.00013972,2]
[332825899,1721555461307,-500.0,0.00013972,2]
[332825900,1721555461317,-500.0,0.00013972,2]
[332825901,1721555461326,-169.113755,0.00013972,2]
[332825902,1721555461335,-323.56279372,0.00013972,2]
[332825903,1721555461345,-500.0,0.00013972,2]
[332825904,1721555461356,-169.113755,0.00013972,2]
[332825905,1721555461366,-169.113755,0.00013972,2]
[332825906,1721555461375,-169.113755,0.00013972,2]
[332825907,1721555461384,-169.113752,0.00013972,2]
[332825908,1721555461394,-286.82483,0.00013972,2]
[332825909,1721555461403,-500.0,0.00013972,2]
[332825910,1721555461412,-1324.26,0.00013972,2]
[332825911,1721555461421,-500.0,0.00013972,2]
[332825912,1721555461432,-889.63,0.00013972,2]
[332825913,1721555461441,-500.0,0.00013972,2]
[332825914,1721555461451,-500.0,0.00013972,2]
[332825915,1721555461462,-500.0,0.00013972,2]
[332825916,1721555461472,-725.84,0.00013972,2]
[332825917,1721555461482,-500.0,0.00013972,2]
[332825918,1721555461491,-2453.11,0.00013972,2]
[332825919,1721555461500,-506.6275304,0.00013972,2]
[332825920,1721555461510,-2502.19,0.00013972,2]
[332825921,1721555461519,-151.0,0.00013972,2]
[332825922,1721555461529,-151.0,0.00013972,2]
[332825923,1721555461539,-151.0,0.00013972,2]
[332825924,1721555461548,-151.0,0.00013972,2]
[332825925,1721555461557,-151.0,0.00013972,2]
[332825926,1721555461566,-500.0,0.00013972,2]
[332825927,1721555461576,-463.82406634,0.00013972,2]
[332825928,1721555461585,-607.0,0.00013972,2]
[332825929,1721555461594,-528.97,0.00013972,2]
[332825930,1721555461604,-658.1,0.00013972,2]
[332825931,1721555461614,-1073.15,0.00013972,2]
[332825932,1721555461623,-344.18477793,0.00013972,2]
[332825933,1721555461632,-500.0,0.00013972,2]
[332825934,1721555461641,-755.32,0.00013972,2]
[332825935,1721555461650,-500.0,0.00013972,2]
[332825936,1721555461659,-151.0,0.00013972,2]
[332825937,1721555461669,-151.0,0.00013972,2]
[332825938,1721555461678,-151.0,0.00013972,2]
[332825939,1721555461688,-151.0,0.00013972,2]
[332825940,1721555461701,-500.0,0.00013972,2]
[332825941,1721555461711,-151.0,0.00013972,2]
[332825942,1721555461720,-500.0,0.00013972,2]
[332825943,1721555461729,-500.0,0.00013972,2]
[332825944,1721555461738,-500.0,0.00013972,2]
[332825945,1721555461748,-500.0,0.00013972,2]
[332825946,1721555461757,-500.0,0.00013972,2]
[332825947,1721555461766,-500.49192096,0.00013972,2]
[332825948,1721555461775,-696.599873,0.00013972,2]
[332825949,1721555461784,-696.599873,0.00013972,2]
[332825950,1721555461793,-696.599873,0.00013972,2]
[332825951,1721555461802,-500.0,0.00013972,2]
[332825952,1721555461811,-696.599873,0.00013972,2]
[332825953,1721555461823,-500.0,0.00013972,2]
[332825954,1721555461833,-696.599873,0.00013972,2]
[332825955,1721555461843,-733.92,0.00013972,2]
[332825956,1721555461855,-696.599873,0.00013972,2]
[332825957,1721555461866,-696.599873,0.00013972,2]
[332825958,1721555461878,-696.599873,0.00013972,2]
[332825959,1721555461887,-696.599873,0.00013972,2]
[332825960,1721555461898,-500.0,0.00013972,2]
[332825961,1721555461909,-696.599874,0.00013972,2]
[332825962,1721555461920,-389.18177951,0.00013972,2]
[332825963,1721555461929,-500.0,0.00013972,2]
[332825964,1721555461940,-500.0,0.00013972,2]
[332825965,1721555461949,-500.0,0.00013972,2]
[332825966,1721555461959,-596.56,0.00013972,2]
[332825967,1721555461968,-607.1,0.00013972,2]
[332825968,1721555461977,-554.81,0.00013972,2]
[332825969,1721555461987,-500.0,0.00013972,2]
[332825970,1721555461996,-500.0,0.00013972,2]
[332825971,1721555462005,-500.0,0.00013972,2]
[332825972,1721555462015,-1820.2,0.00013972,2]
[332825973,1721555462027,-1181.32,0.00013972,2]
[332825974,1721555462039,-1714.34,0.00013972,2]
[332825975,1721555462049,-500.0,0.00013972,2]
[332825976,1721555462060,-500.0,0.00013972,2]
[332825977,1721555462072,-513.01,0.00013972,2]
[332825978,1721555462082,-662.59,0.00013972,2]
[332825979,1721555462092,-500.0,0.00013972,2]
[332825980,1721555462102,-500.0,0.00013972,2]
[332825981,1721555462114,-500.0,0.00013972,2]
[332825982,1721555462124,-2516.03,0.00013972,2]
[332825983,1721555462135,-643.79,0.00013972,2]
[332825984,1721555462144,-554.61,0.00013972,2]
[332825985,1721555462154,-529.33563305,0.00013972,2]
[332825986,1721555462164,-504.21785429,0.00013972,2]
[332825987,1721555462174,-731.29,0.00013972,2]
[332825988,1721555462183,-500.0,0.00013972,2]
[332825989,1721555462193,-500.0,0.00013972,2]
[332825990,1721555462202,-151.0,0.00013972,2]
[332825991,1721555462214,-151.0,0.00013972,2]
[332825992,1721555462225,-151.0,0.00013972,2]
[332825993,1721555462234,-1752.98,0.00013972,2]
[332825994,1721555462244,-814.53,0.00013972,2]
[332825995,1721555462254,-500.0,0.00013972,2]
[332825996,1721555462264,-151.0,0.00013972,2]
[332825997,1721555462275,-258.463419,0.00013972,2]
[332825998,1721555462284,-500.0,0.00013972,2]
[332825999,1721555462294,-500.0,0.00013972,2]
[332826000,1721555462303,-506.32707098,0.00013972,2]
[332826001,1721555462312,-500.0,0.00013972,2]
[332826002,1721555462322,-500.0,0.00013972,2]
[332826003,1721555462331,-535.79,0.00013972,2]
[332826004,1721555462341,-501.77627164,0.00013972,2]
[332826005,1721555462351,-500.0,0.00013972,2]
[332826006,1721555462360,-500.0,0.00013972,2]
[332826007,1721555462370,-500.0,0.00013972,2]
[332826008,1721555462380,-500.0,0.00013972,2]
[332826009,1721555462390,-779.85,0.00013972,2]
[332826010,1721555462402,-327.358996,0.00013972,2]
[332826011,1721555462412,-327.358996,0.00013972,2]
[332826012,1721555462421,-327.358996,0.00013972,2]
[332826013,1721555462431,-500.0,0.00013972,2]
[332826014,1721555462440,-327.358996,0.00013972,2]
[332826015,1721555462449,-500.0,0.00013972,2]
[332826016,1721555462459,-327.358996,0.00013972,2]
[332826017,1721555462468,-327.358992,0.00013972,2]
[332826018,1721555462478,-500.0,0.00013972,2]
[332826019,1721555462487,-500.0,0.00013972,2]
[332826020,1721555462497,-829.85,0.00013972,2]
[332826021,1721555462506,-827.08,0.00013972,2]
[332826022,1721555462516,-1004.92,0.00013972,2]
[332826023,1721555462525,-500.0,0.00013972,2]
[332826024,1721555462535,-500.0,0.00013972,2]
[332826025,1721555462545,-574.58,0.00013972,2]
[332826026,1721555462555,-500.0,0.00013972,2]
[332826027,1721555462564,-500.0,0.00013972,2]
[332826028,1721555462574,-500.0,0.00013972,2]
[332826029,1721555462584,-500.0,0.00013972,2]
[332826030,1721555462595,-501.89930522,0.00013972,2]